Cogmind - Beta 9.4 @@@ ROGUE MODE // 2020.03.04 @ 13:04:53 Player: Zailor Result: Destroyed by G-47 Trooper with Particle Gun Performance ------------- Evolutions (2) 1000 Regions Visited (6) 1200 Robots Destroyed (63) 315 Value Destroyed (1451) 1451 Prototype IDs (6) 120 Alien Tech Used (0) 0 Bonus (300) 300 TOTAL SCORE: 4386 Bonus ------- Aligned with FarCom 300 Cogmind --------- Core Integrity 0/550 Matter 145/300 Energy 85/100 System Corruption 13% Temperature Cool (9) Movement Walking (210) Ox3 Location -8/Materials Parts ------- > --- POWER (1) -------- (None) > --- PROPULSION (2) --- Aluminum Leg > --- UTILITY (4) ------ High-capacity Storage Unit Terrain Scan Processor > --- WEAPON (4) ------- Heavy Hammer > --- INVENTORY (12) --- Ion Engine Aluminum Leg Improved Heat Sink Cooling System Peak State ------------ > --- POWER ------------ Improved Ion Engine > --- PROPULSION ------- Light Treads Light Treads > --- UTILITY ---------- High-capacity Storage Unit Improved Sensor Array Signal Interpreter Utility Shielding > --- WEAPON ----------- Light Assault Rifle Light Assault Rifle Light Assault Rifle Rocket Launcher > --- INVENTORY -------- Ion Engine Aluminum Leg Aluminum Leg Cooling System Light Assault Rifle Shotgun Heavy Hammer [Rating: 15] Favorites ----------- Power Improved Ion Engine Engine Improved Ion Engine Power Core Light Nuclear Core Propulsion Light Treads Treads Light Treads Leg Aluminum Leg Flight Unit Flight Unit Utility Utility Shielding Device Tractor Beam Storage High-capacity Storage Unit Processor Signal Interpreter Protection Utility Shielding Weapon Light Assault Rifle Energy Gun Medium Laser Ballistic Gun Light Assault Rifle Ballistic Cannon Light Cannon Launcher Rocket Launcher Special Weapon Plasma Cutter Impact Weapon Heavy Hammer Build | -11 -10 -9 -9 -9 -8 -8 ------- Run | Scr Mat Mat Min Exi Min Mat Slots Evolved 4 | . . 2 . . . 2 Power . | . . . . . . . Propulsion . | . . . . . . . Utility 2 | . . 1 . . . 1 Weapon 2 | . . 1 . . . 1 Parts Attached 62 | 6 17 22 . . . 17 Power 5 | 1 1 2 . . . 1 Engine 3 | 1 . 2 . . . . Core 2 | . 1 . . . . 1 Reactor . | . . . . . . . Propulsion 20 | 2 6 8 . . . 4 Treads 12 | 2 4 6 . . . . Leg 6 | . . 2 . . . 4 Wheel . | . . . . . . . Hover . | . . . . . . . Flight 2 | . 2 . . . . . Utility 17 | 1 5 5 . . . 6 Device 5 | . . 3 . . . 2 Storage 3 | 1 2 . . . . . Processor 4 | . 1 . . . . 3 Hackware . | . . . . . . . Protection 5 | . 2 2 . . . 1 Artifact . | . . . . . . . Weapon 20 | 2 5 7 . . . 6 Energy Gun 4 | 1 2 1 . . . . Energy Cannon . | . . . . . . . Ballistic Gun 12 | 1 2 5 . . . 4 Ballistic Cannon 1 | . 1 . . . . . Launcher 1 | . . . . . . 1 Special Weapon 1 | . . 1 . . . . Impact Weapon 1 | . . . . . . 1 Slashing Weapon . | . . . . . . . Piercing Weapon . | . . . . . . . Special Melee Weapon . | . . . . . . . Unidentified Prototypes . | . . . . . . . Parts Lost 32 | . 1 11 . . 1 19 Power 4 | . . 2 . . . 2 Propulsion 7 | . . 2 . . . 5 Utility 7 | . . 2 . . . 5 Weapon 14 | . 1 5 . . 1 7 Highest Loss Streak 8 | . 1 6 . . 1 8 Average Slot Usage (%) 95 | . 98 96 100 100 99 67 Engine 8 | . 5 8 11 11 11 3 Core 2 | . 8 1 . . . 3 Treads 21 | . 27 19 22 22 22 5 Leg 1 | . . 1 . . . 9 Device 1 | . . 5 . . . 4 Storage 11 | . 14 11 11 11 11 9 Protection 16 | . 13 15 22 22 22 7 Energy Gun 1 | . 6 . . . . . Ballistic Gun 20 | . 20 19 22 22 22 13 Ballistic Cannon 7 | . . 11 11 11 10 . Naked Turns . | . . . . . . . Heaviest Build 50 | 13 43 50 50 50 50 49 Greatest Support 40 | 40 40 40 40 40 40 40 Greatest Overweight (x) 16 | . 1 2 1 1 1 16 Average Overweight (x) . | . . 1 1 1 1 1 Largest Inventory Capacity 12 | 6 12 12 12 12 12 12 Average Capacity 10 | 5 8 12 12 12 12 12 Most Carried 12 | 6 10 12 12 12 12 12 Average Carried 9 | 4 6 10 12 12 12 5 Final Capacity 12 | 6 12 12 12 12 12 12 Final Carried 12 | 6 10 12 12 12 12 4 Class Distribution -------------------- 46% | Scavenger-Tank 34% | Mutant 15% | Tank 3% | Scavenger-Skirmisher Dominant Class ---------------- Mutant | -10/Materials Tank | -9/Materials Scavenger-Tank | -9/Mines Scavenger-Tank | -9/Exiles Scavenger-Tank | -8/Mines Mutant | -8/Materials Resources | -11 -10 -9 -9 -9 -8 -8 ----------- Run | Scr Mat Mat Min Exi Min Mat Matter Collected 1395 | 260 243 647 . 24 . 221 Remotely 180 | . . 180 . . . . Salvage Created 1778 | . 408 926 . . . 444 Parts 136 | . 29 75 . . . 32 Haulers Intercepted 1 | . 1 . . . . . Recyclers Shooed . | . . . . . . . Parts Field Recycled . | . . . . . . . Retrieved Matter . | . . . . . . . Parts Self-Destructed . | . . . . . . . Prevented . | . . . . . . . Kills | -11 -10 -9 -9 -9 -8 -8 ------- Run | Scr Mat Mat Min Exi Min Mat Combat Hostiles Destroyed 47 | . 11 25 . . . 11 Melee 1 | . . . . . . 1 Guns 29 | . 11 13 . . . 5 Cannons 12 | . . 12 . . . . AOE 4 | . . . . . . 4 Classes Destroyed 12 | . 4 6 . . . 2 Worker 5 | . . 3 . . . 2 Builder 2 | . . 1 . . . 1 Tunneler 2 | . 1 . . . . 1 Hauler 1 | . 1 . . . . . Recycler 1 | . . 1 . . . . Mechanic 1 | . . 1 . . . . Operator 1 | . . . . . . 1 Watcher 3 | . . 1 . . . 2 Swarmer 21 | . 6 12 . . . 3 Grunt 18 | . 5 6 . . . 7 Sentry 7 | . . 7 . . . . Hunter 1 | . . . . . . 1 Best Kill Streak 12 | . 3 5 . . . 12 Combat Bots Only 7 | . 3 4 . . . 7 Max Kills in Single Turn 3 | . 1 2 . . . 3 Gunslinging . | . . . . . . . Exploded 3 | . . . . . . 3 Melee 1 | . . . . . . 1 Uniques/NPCs Destroyed . | . . . . . . . Combat | -11 -10 -9 -9 -9 -8 -8 -------- Run | Scr Mat Mat Min Exi Min Mat Damage Taken 3780 | . 377 1113 . . 144 2146 Core 739 | . 11 173 . . . 555 Absorbed by Shields . | . . . . . . . Core Remaining (%) 83 | 100 95 . . . 56 . Volleys Fired 130 | . 36 66 . . . 28 Largest 4 | . 2 3 . . . 4 Hottest 114 | . 70 114 . . . 93 Shots Fired 336 | . 68 178 . . . 90 Gun 248 | . 68 102 . . . 78 Cannon 66 | . . 66 . . . . Launcher 12 | . . . . . . 12 Special 10 | . . 10 . . . . Kinetic 292 | . 53 161 . . . 78 Thermal 32 | . 15 17 . . . . Explosive 12 | . . . . . . 12 Electromagnetic . | . . . . . . . Robot Hit Streak 11 | . 7 11 . . . 10 Robot Miss Streak 5 | . 2 5 . . . 5 Penetration Max . | . . . . . . . Secondary Targets 2 | . 1 . . . . 1 Max Gunslinging Chain 1 | . 1 . . . . 1 Shots Hit Robots 206 | . 46 104 . . . 56 Core Hits 94 | . 20 46 . . . 28 Critical Hits 4 | . . 3 . . . 1 Critical Kills 2 | . . 1 . . . 1 Critical Parts Destroyed 2 | . . 2 . . . . Melee Attacks 13 | . . . . . . 13 Impact 13 | . . . . . . 13 Slashing . | . . . . . . . Piercing . | . . . . . . . Sneak Attacks 1 | . . . . . . 1 Combat Hostiles . | . . . . . . . Follow-up Attacks . | . . . . . . . Damage Inflicted 3415 | . 545 1421 . . . 1449 Guns 1789 | . 540 837 . . . 412 Cannons 528 | . . 528 . . . . Explosions 739 | . . . . . . 739 Melee 298 | . . . . . . 298 Ramming 5 | . 5 . . . . . Kinetic 2093 | . 402 1279 . . . 412 Thermal 280 | . 138 142 . . . . Explosive 739 | . . . . . . 739 Electromagnetic . | . . . . . . . Impact 298 | . . . . . . 298 Slashing . | . . . . . . . Piercing . | . . . . . . . Highest Corruption 13 | . . . . . . 13 Average Corruption 12 | . . . . . . 12 Corruption Purged . | . . . . . . . Effects 18 | . . . . . . 18 Message Errors 1 | . . . . . . 1 Matter Fused 3 | . . . . . . 3 Heat Flow Errors 1 | . . . . . . 1 Energy Discharges 2 | . . . . . . 2 Data Loss (minor) 2 | . . . . . . 2 Data Loss (major) 1 | . . . . . . 1 Misdirections 4 | . . . . . . 4 Targeting Errors 3 | . . . . . . 3 Weapon Failures 1 | . . . . . . 1 Overload Shots . | . . . . . . . Overflow Damage 98 | . . . . . . 98 Projectiles . | . . . . . . . Explosions 32 | . . . . . . 32 Melee 66 | . . . . . . 66 Knockbacks 2 | . . 2 . . . . Impact . | . . . . . . . Kinetic 2 | . . 2 . . . . Secondary . | . . . . . . . Self-Inflicted Damage 137 | . . . . . . 137 Shots 4 | . . . . . . 4 Rammed 1 | . 1 . . . . . Targets Rammed 1 | . 1 . . . . . Kicked . | . . . . . . . Crushed . | . . . . . . . Highest Temperature 225 | . 75 211 . . 3 225 Average Temperature 44 | . 16 44 . . 2 73 Received Heat Transfer 930 | . 105 177 . . 63 585 Siege Activations . | . . . . . . . Robots Corrupted . | . . . . . . . Combat Hostiles . | . . . . . . . Parts Fried 1 | . . . . . . 1 Impact Corruptions 3 | . . . . . . 3 Robots Melted . | . . . . . . . Combat Hostiles . | . . . . . . . Parts Melted . | . . . . . . . Heat Transferred 814 | . 407 407 . . . . Parts Sabotaged . | . . . . . . . Parts Stolen . | . . . . . . . Parts Stripped . | . . . . . . . Power Chain Reactions . | . . . . . . . Missiles Intercepted . | . . . . . . . Alert | -11 -10 -9 -9 -9 -8 -8 ------- Run | Scr Mat Mat Min Exi Min Mat Peak Influence 298 | . 122 298 33 . . 283 Average Influence 106 | . 45 179 33 . . 203 Maximum Alert Level 1 | . . 1 . . . 1 Low Security (%) 75 | 100 100 55 100 . 100 24 Level 1 24 | . . 44 . . . 75 Level 2 . | . . . . . . . Level 3 . | . . . . . . . Level 4 . | . . . . . . . Level 5 . | . . . . . . . High Security . | . . . . . . . Max Security . | . . . . . . . Squads Dispatched 7 | . 1 4 . . . 2 Investigation 3 | . 1 2 . . . . Extermination . | . . . . . . . Reinforcement 4 | . . 2 . . . 2 Assault . | . . . . . . . Garrison . | . . . . . . . Intercept . | . . . . . . . Construction Impeded 1 | . . . . . . 1 Haulers Reinforced . | . . . . . . . Stealth | -11 -10 -9 -9 -9 -8 -8 --------- Run | Scr Mat Mat Min Exi Min Mat Distress Signals 3 | . . 3 . . . . Communications Jammed . | . . . . . . . Distress Signals . | . . . . . . . Times Spotted 77 | . 22 33 . . 4 18 Peak Tracking Total 7 | . 5 5 . . 4 7 Tactical Retreats 7 | . 1 6 . . . . Traps | -11 -10 -9 -9 -9 -8 -8 ------- Run | Scr Mat Mat Min Exi Min Mat Traps Triggered 3 | . 2 1 . . . . Indirectly . | . . . . . . . Trap Hack Attempts . | . . . . . . . Triggered . | . . . . . . . Disarmed . | . . . . . . . Reprogrammed . | . . . . . . . Reused . | . . . . . . . Traps Extracted . | . . . . . . . Installed . | . . . . . . . Triggered . | . . . . . . . Machines | -11 -10 -9 -9 -9 -8 -8 ---------- Run | Scr Mat Mat Min Exi Min Mat Machines Disabled 1 | . . . . . . 1 Max in Single Turn 1 | . . . . . . 1 Machines Sabotaged . | . . . . . . . Garrisons Compromised . | . . . . . . . Overloaded Fab Kills . | . . . . . . . Fab Network Shutdowns . | . . . . . . . Hacking | -11 -10 -9 -9 -9 -8 -8 --------- Run | Scr Mat Mat Min Exi Min Mat Machines Accessed 9 | . 4 3 . 2 . . Terminals 6 | . 3 3 . . . . Fabricators . | . . . . . . . Repair Stations 1 | . 1 . . . . . Recycling Units . | . . . . . . . Scanalyzers . | . . . . . . . Garrison Access . | . . . . . . . Total Hacks 32 | . 11 12 . 9 . . Successful 25 | . 9 7 . 9 . . Failed 7 | . 2 5 . . . . Catastrophic . | . . . . . . . Database Lockouts . | . . . . . . . Manual 7 | . 1 4 . 2 . . Terminals 21 | . 9 12 . . . . Fabricators . | . . . . . . . Repair Stations 2 | . 2 . . . . . Recycling Units . | . . . . . . . Scanalyzers . | . . . . . . . Garrison Access . | . . . . . . . Terminal Hacks 22 | . 6 7 . 9 . . Record 9 | . . . . 9 . . Prototype ID Bank 3 | . 1 2 . . . . Emergency Access Points 1 | . 1 . . . . . Alert Level 1 | . 1 . . . . . Unreport Threat 1 | . . 1 . . . . Locate Traps 3 | . 2 1 . . . . Hauler Manifests 2 | . 1 1 . . . . Zone Layout 2 | . . 2 . . . . Fabricator Hacks . | . . . . . . . Repair Station Hacks 2 | . 2 . . . . . Scan Component 1 | . 1 . . . . . Repair 1 | . 1 . . . . . Recycling Unit Hacks . | . . . . . . . Scanalyzer . | . . . . . . . Garrison Access Hacks . | . . . . . . . Unauthorized Hacks 2 | . 2 . . . . . Terminals 1 | . 1 . . . . . Assimilate 1 | . 1 . . . . . Fabricators . | . . . . . . . Repair Stations . | . . . . . . . Recycling Units . | . . . . . . . Scanalyzers . | . . . . . . . Garrison Access . | . . . . . . . Data Cores Recovered . | . . . . . . . Used . | . . . . . . . Hacking Detections 4 | . 2 2 . . . . Full Trace Events 1 | . . 1 . . . . Feedback Events . | . . . . . . . Feedback Blocked . | . . . . . . . Robot Schematics Acquired . | . . . . . . . Robots Built . | . . . . . . . Matter . | . . . . . . . Time . | . . . . . . . Total Robot Build Rating . | . . . . . . . Part Schematics Acquired . | . . . . . . . Parts Built . | . . . . . . . Matter . | . . . . . . . Time . | . . . . . . . Total Part Build Rating . | . . . . . . . Parts Repaired 1 | . 1 . . . . . Time 26 | . 26 . . . . . Parts Recycled . | . . . . . . . Recycled Matter . | . . . . . . . Retrieved Matter . | . . . . . . . Retrieved Components . | . . . . . . . Parts Scanalyzed . | . . . . . . . Part Schematics Acquired . | . . . . . . . Parts Damaged . | . . . . . . . Bothacking | -11 -10 -9 -9 -9 -8 -8 ------------ Run | Scr Mat Mat Min Exi Min Mat Used RIF Installer . | . . . . . . . Robots Hacked . | . . . . . . . Non-combat . | . . . . . . . Combat . | . . . . . . . Robot Hacks Applied . | . . . . . . . Relay Couplers Released . | . . . . . . . Robots Rewired . | . . . . . . . Allies Hacked . | . . . . . . . Hacks Repelled . | . . . . . . . Allies | -11 -10 -9 -9 -9 -8 -8 -------- Run | Scr Mat Mat Min Exi Min Mat Total Allies 2 | . 1 . 1 . . . Largest Group 1 | . 1 . 1 1 . . Highest-Rated Group 31 | . 10 . 31 31 . . Highest-Rated Ally 31 | . 10 . 31 31 . . Total Orders . | . . . . . . . Ally Attacks . | . . . . . . . Total Damage . | . . . . . . . Kills . | . . . . . . . Allies Corrupted . | . . . . . . . Allies Melted . | . . . . . . . Intel | -11 -10 -9 -9 -9 -8 -8 ------- Run | Scr Mat Mat Min Exi Min Mat Robot Analysis Total . | . . . . . . . Derelict Logs Recovered . | . . . . . . . Drone Launches . | . . . . . . . Drone Recoveries . | . . . . . . . Exploration | -11 -10 -9 -9 -9 -8 -8 ------------- Run | Scr Mat Mat Min Exi Min Mat Turns Passed 4924 | 226 1147 1259 348 1395 135 414 Spaces Moved 2350 | 139 564 503 193 772 75 104 Core 11 | 9 . . . . . 2 Treads 2245 | 130 564 476 193 772 75 35 Legs 94 | . . 27 . . . 67 Wheels . | . . . . . . . Hover . | . . . . . . . Flight . | . . . . . . . Fastest Speed 50 | 50 160 150 180 180 180 150 Average Speed 175 | 152 167 179 180 180 180 191 Slowest Speed 850 | 160 180 180 180 180 180 850 Overloaded Moves . | . . . . . . . Propulsion Burnouts . | . . . . . . . Robots Hopped . | . . . . . . . Cave-ins Triggered 2 | . . . . . . 2 Exploration Rate (%) 39 | 9 68 40 29 91 31 8 Regions Visited 6 Branch Regions 3 Pre-discovered Areas . | . . . . . . . Known Exits Taken . | . . . . . . . Unknown Exits Taken 6 | 1 1 1 1 1 1 . Scrap Searched . | . . . . . . . Spaces Dug 2 | . . . . . . 2 Terrain Destroyed 95 | . . . . . . 95 Melee 2 | . . . . . . 2 Projectile 3 | . . . . . . 3 AOE 90 | . . . . . . 90 Actions | -11 -10 -9 -9 -9 -8 -8 --------- Run | Scr Mat Mat Min Exi Min Mat Total 2852 | 150 697 717 194 778 75 241 Wait 239 | . 66 96 . 7 1 69 Move 2344 | 138 563 502 192 771 74 104 Hop . | . . . . . . . Pick Up 45 | 6 9 20 1 . . 9 Fast Attach 11 | 6 4 1 . . . . Attach 30 | . 2 12 . . . 16 Detach . | . . . . . . . Swap 21 | . 11 9 . . . 1 Drop 18 | . 5 11 1 . . 1 Fire 130 | . 36 66 . . . 28 Melee 13 | . . . . . . 13 Ram . | . . . . . . . Kick . | . . . . . . . Crush 1 | . 1 . . . . . Escape Stasis . | . . . . . . . Rewire . | . . . . . . . Trap . | . . . . . . . Miscellaneous . | . . . . . . . Route ------- -11/Scrapyard -10/Materials (discovered 4 exits: *Mat x2 / [*Min x2]) -9/Materials (discovered 2 exits: [*Mat] / [*Min]) -9/Mines (discovered 3 exits: [*Mat x2] / *Exi) -9/Exiles (discovered 2 exits: [*Min x2]) -8/Mines -8/Materials History --------- Turn | Location | Event 23 | -11/Scrapyard | Discovered new exit (range 16) 227 | -11/Scrapyard | Entered Materials 315 | -10/Materials | Build established: Mutant 426 | -10/Materials | Discovered new exit (range 15) 695 | -10/Materials | Discovered new exit (range 8) 877 | -10/Materials | Discovered new exit (range 16) 1084 | -10/Materials | Repaired Lgt. Treads 1328 | -10/Materials | Discovered new exit (range 16) 1374 | -10/Materials | Entered another Materials area 1374 | -9/Materials | Evolved 2 slots: Utility x1, Weapon x1 1883 | -9/Materials | Build established: Tank 1886 | -9/Materials | Discovered new exit (range 14) 2232 | -9/Materials | Lost 6 parts (1p2n1u2w) 2518 | -9/Materials | Discovered new exit (range 13) 2633 | -9/Materials | Entered Mines 2673 | -9/Mines | Received a Rocket Launcher from a helpful Derelict 2696 | -9/Mines | Build established: Scavenger-Tank 2738 | -9/Mines | Discovered new exit (range 14) 2759 | -9/Mines | Received a Mining Laser from a helpful Derelict 2761 | -9/Mines | Discovered new exit (range 8) 2968 | -9/Mines | Deemed a non-threat by the Exiles lab entrance 2970 | -9/Mines | Discovered new exit (range 5) 2981 | -9/Mines | Entered Exiles 2981 | -9/Exiles | Accompanied by 1 ally 3026 | -9/Exiles | Discovered new exit (range 15) 3071 | -9/Exiles | Met 8R-AWN 3107 | -9/Exiles | Met EX-HEX 3219 | -9/Exiles | Met EX-BIN 3445 | -9/Exiles | Aligned with FarCom system 3447 | -9/Exiles | Given EX-Vault access code 3519 | -9/Exiles | Met EX-DEC 3648 | -9/Exiles | Discovered new exit (range 14) 3869 | -9/Exiles | Visited The Gauntlet 4376 | -9/Exiles | Entered Mines 4502 | -8/Mines | Discovered new exit (range 3) 4511 | -8/Mines | Entered Materials 4511 | -8/Materials | Evolved 2 slots: Utility x1, Weapon x1 4624 | -8/Materials | Crushed by falling debris 4624 | -8/Materials | System corruption reached 10% 4627 | -8/Materials | Destroyed 7 combat bots 4655 | -8/Materials | Lost 5 parts (1n1u3w) 4707 | -8/Materials | Crushed by falling debris 4746 | -8/Materials | Lost 8 parts (1p1n2u4w) 4903 | -8/Materials | Core integrity fell below 50% 4918 | -8/Materials | Core integrity fell below 20% 4925 | -8/Materials | Destroyed by G-47 Trooper with Particle Gun Last Messages --------------- 04905_ Penetrated by Slug. 04905_ Lgt. Nuclear Core destroyed. 04906_ G-47 Trooper destroyed. 04908_ U-05 Engineer builds a Wall. 04908_ Penetrated by Slug. 04908_ K-01 Serf collects debris. 04910_ U-05 Engineer destroyed. 04911_ Slug penetrates Wall. 04912_ K-01 Serf collects debris. 04917_ Penetrated by Slug. 04919_ K-01 Serf collects debris. 04919_ U-05 Engineer destroyed. 04920_ Penetrated by Slug. 04920_ Imp. Heat Sink destroyed. 04920_ Acquired Unknown Processor. 04921_ Identified Terrain Scan Processor. 04922_ K-01 Serf collects debris. 04922_ Acquired 27 matter. 04923_ Penetrated by Slug. 04923_ Aluminum Leg destroyed. Map ----- +----------------------------------------------------+ | ????????????????????????????????????????????? | | ????????????????????????????????????????????? | | ????????????????????????????????????????????? | | ????????????????????????????????????????????? | | ????????????????????????????????????????????? | | ????????????????????????????????????????????? | | ????????????????????????######??????????????? | | ????????????????????????# ! ??????????????? | | ???????????????????????? ??????????????? | | ????????????????????????# ??????????????? | | ????????????????????###?# #?????????????? | | ?????????????????? # ## #?????????????? | | ?????????????????" # % a ##?????????????? | | ????????????????"" # ##?????????????? | | ????????????????" # ###????????????? | | ???????????????? # # # ##???????????? | | ?????????????????= ## #???????????? | | ??????????????????? % # #???????????? | | ????????#######+##### ###a #####??????????? | | ????????? a #??????????? | | ??????????? !%g #??????????? | | ????????????? gk = ##?????????? | | ?????????######+######## !!##+ ###????????? | | ?????????# ##g%=## #????????? | | ?????????# "" ##=| # #????????? | | ?????????# """""" "" "# @ # #???????? | | ?????????# """" # !h# #???????? | | ?????????# ! # ## ! ????? | | ?????????# ## ## %* """ ?? | | ?????????############## # ## """ ??? | | ????????????????????? = # """????? | | ??????????????????? T [ ????? | | ?????????????????? %% """????? | | ??????????????????##### ###% # """ ???? | | ??????????????????????####### # ""?????? | | ????????????????????????????### % # ?????? | | ??????????????????????????????? ##+#?????? | | ??????????????????????????????? ????????? | | ??????????????????????????????? % ????????? | | ??????????????????????????????? ??????????? | | ????????????????????????????????????????????? | | ????????????????????????????????????????????? | | ????????????????????????????????????????????? | | ????????????????????????????????????????????? | | ????????????????????????????????????????????? | | ????????????????????????????????????????????? | | ????????????????????????????????????????????? | | ????????????????????????????????????????????? | | ????????????????????????????????????????????? | | ????????????????????????????????????????????? | +----------------------------------------------------+ Best States ------------- Heat Dissipation 50 Energy Generation 14 Energy Capacity 265 Matter Stores 300 Matter Capacity 300 Sight Range 16 Robot Scan Range 13 Terrain Scan Density 10 Armor Coverage 150 Utility Shielding 33 Evasion (%) 40 Recoil Reduction 2 Item Schematics ----------------- None Robot Schematics ------------------ None Fabricated ------------ Nothing Alien Tech Used ----------------- None Achievements -------------- None Challenges ------------ None Game ------ Seed ControlMatterRay Manual? 0 Play Time 01:25:49 Cumulative 97.2 hours Start 2020.03.04 @ 02:18:33 End 2020.03.04 @ 13:04:53 Sessions 3 Manual Loads 0 Difficulty Rogue Special Mode None Game No. 96 Rogue 96 Adventurer 0 Explorer 0 Win Type - Total 1 Types 1/0/0/0/0/0/0 Lore% 56 Gallery% 59 Achievement% 47 Wizard Run 0 Options --------- ASCII 0 Keyboard 0 Movement Vi Keybinds 0 Fullscreen 1 Font 18/SmallcapsGlow Map View 76x50 Tactical HUD 1 Map Filters NONE Filters NONE Steam 1 RUN: 725a1236-eb57-41d3-af74-89edbadf360a